Cogmind - Beta 15 --- EXPLORER MODE // 2025.05.31 @ 12:29:13 Player: Sparranova Result: Smashed by cave-in Performance ------------- Evolutions (0) 0 Regions Visited (3) 600 Robots Destroyed (31) 155 Value Destroyed (657) 657 Prototype IDs (2) 40 Alien Tech Used (0) 0 Bonus (0) 0 TOTAL SCORE: 1452 Bonus ------- None Cogmind --------- Core Integrity 0/250 Matter 230/300 Energy 160/160 System Corruption 2% Temperature Cool (18) Movement Core (700) Ox13 Location -10/Subcaves Parts ------- > --- POWER (1) -------- Light Nuclear Core > --- PROPULSION (2) --- (None) > --- UTILITY (3) ------ Large Storage Unit Improved Terrain Scanner Hardened Light Armor Plating > --- WEAPON (2) ------- Beam Cannon Slug Cannon > --- INVENTORY (15) --- Ion Engine Targeting Computer ECM Suite Hardened Light Armor Plating EM Pulse Gun Grenade Launcher Subdweller Shrapnel Launcher Peak State ------------ > --- POWER ------------ Light Nuclear Core > --- PROPULSION ------- Wheel Wheel > --- UTILITY ---------- Large Storage Unit Improved Terrain Scanner Targeting Computer > --- WEAPON ----------- EM Pulse Gun Slug Cannon > --- INVENTORY -------- Ion Engine Targeting Computer ECM Suite Hardened Light Armor Plating Hardened Light Armor Plating Beam Cannon Grenade Launcher Subdweller Shrapnel Launcher [Rating: 16] Favorites ----------- Power Light Nuclear Core Engine Ion Engine Power Core Light Nuclear Core Propulsion Light Treads Treads Light Treads Wheel Wheel Utility Targeting Computer Device Improved Terrain Scanner Storage Large Storage Unit Processor Targeting Computer Protection Hardened Light Armor Plating Weapon EM Pulse Gun Energy Gun EM Pulse Gun Energy Cannon Beam Cannon Ballistic Cannon Slug Cannon Launcher Grenade Launcher Build | -11 -10 -10 -10 ------- Run | Yrd Mat Min Sub Slots Evolved 1 | . 1 . . Power . | . . . . Propulsion . | . . . . Utility 1 | . 1 . . Weapon . | . . . . Parts Attached 16 | 7 6 . 3 Power 2 | 1 1 . . Engine 1 | 1 . . . Core 1 | . 1 . . Reactor . | . . . . Propulsion 4 | 2 2 . . Treads 2 | 2 . . . Leg . | . . . . Wheel 2 | . 2 . . Hover . | . . . . Flight . | . . . . Utility 5 | 2 2 . 1 Device 1 | . 1 . . Storage 2 | 1 1 . . Processor 1 | 1 . . . Hackware . | . . . . Protection 1 | . . . 1 Artifact . | . . . . Weapon 5 | 2 1 . 2 Energy Gun 2 | 2 . . . Energy Cannon 1 | . . . 1 Ballistic Gun . | . . . . Ballistic Cannon 1 | . . . 1 Launcher 1 | . 1 . . Special Weapon . | . . . . Impact Weapon . | . . . . Slashing Weapon . | . . . . Piercing Weapon . | . . . . Special Melee Weapon . | . . . . Unidentified Prototypes . | . . . . Parts Lost 4 | . . 1 3 Power . | . . . . Propulsion 2 | . . . 2 Utility 1 | . . . 1 Weapon 1 | . . 1 . Highest Loss Streak 2 | . . 1 2 To Critical Strikes . | . . . . Average Backups 7 | 6 7 7 7 Power . | . . 1 1 Propulsion 1 | 2 1 . . Utility 3 | 3 3 4 3 Weapon 1 | . 1 2 3 Tool/Special . | . . . . Unused Backups 9 | 2 3 . 4 Power 1 | . 1 . . Propulsion 2 | 2 . . . Utility 5 | . 2 . 3 Weapon 1 | . . . 1 Tool/Special . | . . . . Average Slot Usage (%) 98 | . 100 94 94 Core 11 | . 10 12 12 Treads 11 | . 17 . . Wheel 13 | . 7 25 25 Device 12 | . 12 12 12 Storage 12 | . 12 12 12 Processor 11 | . 12 12 7 Energy Gun 17 | . 19 17 6 Launcher 3 | . 5 1 . Peak Build Rating 16 | 7 13 13 16 Average Rating 11 | 5 12 12 14 On Entrance 7 | . 7 12 12 Naked Turns . | . . . . Heaviest Build 41 | 19 31 31 41 Greatest Support 40 | 40 40 20 20 Greatest Overweight (x) 6 | 6 1 1 2 Average Overweight (x) . | . . 1 1 Largest Inventory Capacity 15 | 10 15 15 15 Average Capacity 12 | 9 11 15 15 Most Carried 10 | 8 10 8 9 Average Carried 7 | 6 7 7 7 Final Capacity 15 | 10 15 15 15 Final Carried 8 | 7 7 8 7 Class Distribution -------------------- 100% | Hacker-Mutant Dominant Class ---------------- Hacker-Mutant | -10/Materials Hacker-Mutant | -10/Mines Hacker-Mutant | -10/Subcaves Resources | -11 -10 -10 -10 ----------- Run | Yrd Mat Min Sub Matter Collected 512 | 270 116 20 106 Remotely . | . . . . Salvage Created 1028 | 312 477 133 106 Parts 59 | 25 22 9 3 Haulers Intercepted . | . . . . Recyclers Shooed 1 | . 1 . . Parts Field Recycled . | . . . . Retrieved Matter . | . . . . Parts Self-Destructed . | . . . . Prevented . | . . . . Kills | -11 -10 -10 -10 ------- Run | Yrd Mat Min Sub Combat Hostiles Destroyed 16 | . 8 4 4 Guns 11 | . 7 4 . Cannons 4 | . . . 4 AOE 1 | . 1 . . Classes Destroyed 8 | 3 4 . 1 Worker 2 | 2 . . . Builder 1 | . 1 . . Tunneler 7 | 7 . . . Recycler 2 | 1 1 . . Watcher 3 | . 3 . . Swarmer 4 | . 2 2 . Grunt 8 | . 6 2 . Subdweller 4 | . . . 4 Best Kill Streak 6 | 6 6 2 2 Combat Bots Only 4 | . 4 2 2 Max Kills in Single Turn 2 | 1 2 1 1 Gunslinging . | . . . . Exploded 1 | . 1 . . Melee . | . . . . Uniques/NPCs Destroyed . | . . . . Combat | -11 -10 -10 -10 -------- Run | Yrd Mat Min Sub Hostile Shots Fired 57 | . 27 11 19 Missed 13 | . 6 1 6 Hits 44 | . 21 10 13 Projectile 44 | . 21 10 13 Critical Strikes 1 | . . . 1 Damage Taken 794 | . 166 65 563 Core 254 | . 25 21 208 Absorbed by Shields . | . . . . Ignored by Resistances 255 | . 107 42 106 Core Remaining (%) 100 | 100 . . . Volleys Fired 84 | 19 30 11 24 Largest 2 | 2 2 2 2 Hottest 100 | 80 80 80 100 Shots Fired 150 | 38 59 15 38 Gun 116 | 38 58 15 5 Cannon 33 | . . . 33 Launcher 1 | . 1 . . Special . | . . . . Kinetic 24 | . . . 24 Thermal 9 | . . . 9 Explosive 1 | . 1 . . Electromagnetic 116 | 38 58 15 5 Robot Hit Streak 24 | 11 19 8 24 Robot Miss Streak 2 | 2 2 1 1 Penetration Max . | . . . . Secondary Targets 2 | . 1 1 . Max Gunslinging Chain 1 | . 1 1 . Shots Hit Robots 105 | 26 43 11 25 Core Hits 43 | 11 20 7 5 Critical Kills 1 | . . . 1 Critical Parts Destroyed . | . . . . Critical Strikes 4 | 1 1 . 2 Destroy 2 | . . . 2 Corrupt 2 | 1 1 . . Melee Attacks . | . . . . Impact . | . . . . Slashing . | . . . . Piercing . | . . . . Sneak Attacks . | . . . . Combat Hostiles . | . . . . Follow-up Attacks . | . . . . Damage Inflicted 1858 | 430 738 140 550 Guns 1146 | 355 597 140 54 Cannons 496 | . . . 496 Explosions 216 | 75 141 . . Melee . | . . . . Ramming . | . . . . Kinetic 373 | . . . 373 Thermal 339 | 75 141 . 123 Explosive . | . . . . Electromagnetic 1146 | 355 597 140 54 Impact . | . . . . Slashing . | . . . . Piercing . | . . . . Highest Corruption 1 | . 1 1 1 Average Corruption 1 | . 1 1 1 Corruption Purged . | . . . . Corruption Blocked . | . . . . Effects 15 | . 9 4 2 Message Errors 4 | . 3 . 1 Matter Fused 7 | . 4 2 1 Energy Discharges 1 | . . 1 . Data Loss (minor) 1 | . 1 . . Data Loss (major) 1 | . . 1 . Alerts 1 | . 1 . . Overload Shots . | . . . . Overflow Damage 7 | 7 . . . Projectiles . | . . . . Explosions 7 | 7 . . . Melee . | . . . . Knockbacks 6 | . . . 6 Impact . | . . . . Kinetic 5 | . . . 5 Secondary 1 | . . . 1 Self-Inflicted Damage . | . . . . Shots . | . . . . Rammed . | . . . . Targets Rammed . | . . . . Kicked . | . . . . Crushed . | . . . . Highest Temperature 186 | 180 186 96 18 Average Temperature 62 | 70 68 45 9 Received Heat Transfer 240 | . 114 39 87 Siege Activations . | . . . . Martial Activations . | . . . . Shielding Activations . | . . . . Robots Disrupted . | . . . . Combat Hostiles . | . . . . Robots Corrupted . | . . . . Combat Hostiles . | . . . . Parts Fried 4 | 1 2 1 . Impact Corruptions . | . . . . Robots Melted . | . . . . Combat Hostiles . | . . . . Parts Melted 2 | . 1 . 1 Heat Transferred 559 | 100 200 . 259 Parts Sabotaged . | . . . . Parts Stolen . | . . . . Parts Stripped . | . . . . Power Chain Reactions 5 | 2 3 . . Alert | -11 -10 -10 -10 ------- Run | Yrd Mat Min Sub Maximum Alert Level . | . . . . Low Security (%) 100 | 100 100 100 . Level 1 . | . . . . Level 2 . | . . . . Level 3 . | . . . . Level 4 . | . . . . Level 5 . | . . . . High Security . | . . . . Max Security . | . . . . Peak Influence 87 | 15 87 50 . Initial . | . . . . Average 5 | 2 6 5 . Influence Increases 406 | 50 256 100 . Destroy 0b10 Robot/C 240 | . 160 80 . Destroy 0b10 Robot/NC 75 | 50 25 . . Destroy Leader 56 | . 36 20 . Successful Hack 9 | . 9 . . Disable Machine 12 | . 12 . . Destroy Structure 14 | . 14 . . Influence Decreases 406 | 50 256 100 . Time Decay 406 | 50 256 100 . Squads Dispatched . | . . . . Investigation . | . . . . Extermination . | . . . . Reinforcement . | . . . . Assault . | . . . . Garrison . | . . . . Intercept . | . . . . Searches Triggered . | . . . . Construction Impeded . | . . . . Haulers Reinforced . | . . . . Active Scanning Responses . | . . . . Cargo Convoy Interrupts . | . . . . Stealth | -11 -10 -10 -10 --------- Run | Yrd Mat Min Sub Distress Signals 1 | . 1 . . Communications Jammed . | . . . . Distress Signals . | . . . . Times Spotted 21 | . 11 4 6 Peak Tracking Total 3 | . 3 2 2 Tactical Retreats . | . . . . Traps | -11 -10 -10 -10 ------- Run | Yrd Mat Min Sub Traps Triggered 7 | . 7 . . Indirectly . | . . . . Trap Hack Attempts . | . . . . Triggered . | . . . . Disarmed . | . . . . Reprogrammed . | . . . . Reused . | . . . . Traps Extracted . | . . . . Installed . | . . . . Triggered . | . . . . Machines | -11 -10 -10 -10 ---------- Run | Yrd Mat Min Sub Machines Disabled 3 | . 3 . . Max in Single Turn 1 | . 1 . . Machines Repaired . | . . . . Machines Dismantled . | . . . . Machines Sabotaged . | . . . . Overloaded Fab Kills . | . . . . Hacking | -11 -10 -10 -10 --------- Run | Yrd Mat Min Sub Machines Accessed 9 | . 9 . . Terminals 8 | . 8 . . Fabricators . | . . . . Repair Stations 1 | . 1 . . Recycling Units . | . . . . Scanalyzers . | . . . . Garrison Access . | . . . . Total Hacks 28 | . 28 . . Successful 23 | . 23 . . Failed 5 | . 5 . . Catastrophic 1 | . 1 . . Database Lockouts . | . . . . Manual 25 | . 25 . . Terminals 27 | . 27 . . Fabricators . | . . . . Repair Stations 1 | . 1 . . Recycling Units . | . . . . Scanalyzers . | . . . . Garrison Access . | . . . . Terminal Hacks 2 | . 2 . . Prototype ID Bank 1 | . 1 . . Locate Traps 1 | . 1 . . Fabricator Hacks . | . . . . Repair Station Hacks . | . . . . Recycling Unit Hacks . | . . . . Scanalyzer . | . . . . Garrison Access Hacks . | . . . . Unauthorized Hacks 21 | . 21 . . Terminals 20 | . 20 . . Track 6 | . 6 . . Botnet 7 | . 7 . . Skim 7 | . 7 . . Fabricators . | . . . . Repair Stations 1 | . 1 . . Mechanics 1 | . 1 . . Recycling Units . | . . . . Scanalyzers . | . . . . Garrison Access . | . . . . Data Cores Recovered . | . . . . Used . | . . . . Hacking Detections 8 | . 8 . . Full Trace Events . | . . . . Feedback Events . | . . . . Feedback Blocked . | . . . . Robot Schematics Acquired . | . . . . Robots Built . | . . . . Authchips . | . . . . Time . | . . . . Total Robot Build Rating . | . . . . Part Schematics Acquired . | . . . . Parts Built . | . . . . Authchips . | . . . . Time . | . . . . Total Part Build Rating . | . . . . Parts Repaired . | . . . . Time . | . . . . Parts Recycled . | . . . . Recycled Matter . | . . . . Retrieved Matter . | . . . . Retrieved Components . | . . . . Parts Scanalyzed . | . . . . Part Schematics Acquired . | . . . . Parts Damaged . | . . . . Bothacking | -11 -10 -10 -10 ------------ Run | Yrd Mat Min Sub Used RIF Installer . | . . . . Robots Hacked . | . . . . Non-combat . | . . . . Combat . | . . . . Robot Hacks Applied . | . . . . Relay Couplers Released . | . . . . Fabnet Peak Effective % . | . . . . Robots Rewired . | . . . . Allies Hacked . | . . . . Hacks Repelled . | . . . . Allies | -11 -10 -10 -10 -------- Run | Yrd Mat Min Sub Total Allies . | . . . . Largest Group . | . . . . Highest-Rated Group . | . . . . Highest-Rated Ally . | . . . . Total Orders . | . . . . Ally Attacks . | . . . . Total Damage . | . . . . Kills . | . . . . Allies Corrupted . | . . . . Allies Melted . | . . . . Intel | -11 -10 -10 -10 ------- Run | Yrd Mat Min Sub Active Infowar (turns) 2508 | . 1668 491 349 Terrain 2508 | . 1668 491 349 Robot Analysis Total . | . . . . Derelict Logs Recovered 1 | . . . 1 Drone Launches . | . . . . Drone Recoveries . | . . . . Exploration | -11 -10 -10 -10 ------------- Run | Yrd Mat Min Sub Turns Passed 2801 | 294 1668 491 348 Spaces Moved 1632 | 118 786 474 254 Core 31 | 31 . . . Treads 729 | 87 642 . . Legs . | . . . . Wheels 872 | . 144 474 254 Hover . | . . . . Flight . | . . . . Fastest Speed 50 | 50 95 95 95 Average Speed 126 | 165 148 95 99 Slowest Speed 350 | 350 160 95 110 Overloaded Moves . | . . . . Propulsion Burnouts . | . . . . Robots Hopped . | . . . . Potential Cave-ins . | . . . . Cave-ins Triggered 1 | . . . 1 Exploration Rate (%) 57 | 7 98 98 25 Regions Visited 3 Branch Regions 2 Pre-discovered Areas . | . . . . Known Exits Taken 3 | 1 1 1 . Unknown Exits Taken . | . . . . Scrap Searched . | . . . . Spaces Dug 1 | . . . 1 Terrain Destroyed 25 | 7 14 . 4 Melee . | . . . . Projectile 4 | . . . 4 AOE 21 | 7 14 . . Terrain Rammed . | . . . . Walls Destroyed . | . . . . Machines Disabled . | . . . . Actions | -11 -10 -10 -10 --------- Run | Yrd Mat Min Sub Total 2222 | 180 1231 499 312 Wait 454 | 20 391 13 30 Move 1629 | 117 785 473 254 Hop . | . . . . Pick Up 27 | 15 10 1 1 Fast Attach 1 | 1 . . . Attach 11 | 6 3 . 2 Detach . | . . . . Swap 7 | . 5 1 1 Drop 9 | 2 7 . . Fire 84 | 19 30 11 24 Melee . | . . . . Ram . | . . . . Kick . | . . . . Crush . | . . . . Escape Stasis . | . . . . Rewire . | . . . . Trap . | . . . . Miscellaneous . | . . . . Route ------- -11/Scrapyard -10/Materials (discovered 6 exits: *Mat x3 / *Min x2 / *Sub) -10/Mines (discovered 4 exits: *Mat x2 / *Exi / *Sub) -10/Subcaves (discovered 2 exits: Mat / Rec) History --------- Turn | Location | Event 11 | -11/Scrapyard | Identified exit to Materials 11 | -11/Scrapyard | Discovered exit to Materials (range 16) 295 | -11/Scrapyard | Entered Materials 295 | -10/Materials | Evolved 1 slot: Utility x1 316 | -10/Materials | Build established: Hacker-Mutant 482 | -10/Materials | Identified exit to Materials 482 | -10/Materials | Discovered exit to Materials (range 15) 483 | -10/Materials | Identified exit to Subcaves 483 | -10/Materials | Discovered exit to Subcaves (range 9) 832 | -10/Materials | Discovered exit to Materials (range 13) 981 | -10/Materials | Identified exit to Mines 981 | -10/Materials | Discovered exit to Mines (range 7) 1091 | -10/Materials | Discovered exit to Materials (range 7) 1143 | -10/Materials | Learned location of 2 exits from Subcaves 1174 | -10/Materials | Discovered exit to Mines (range 7) 1205 | -10/Materials | Learned location of 1 exit from Recycling 1323 | -10/Materials | Learned location of 1 exit from Recycling 1343 | -10/Materials | Learned Recycling recycling unit intel 1375 | -10/Materials | Learned location of 3 exits from Materials 1473 | -10/Materials | Learned location of 2 exits from Mines 1963 | -10/Materials | Entered Mines 1964 | -10/Mines | Identified exit to Exiles 2077 | -10/Mines | Discovered exit to Materials (range 13) 2110 | -10/Mines | A weapon hastily lodged in a ceiling crevice suddenly fell to the ground 2354 | -10/Mines | Discovered exit to Materials (range 9) 2436 | -10/Mines | Deemed a non-threat by the Exiles lab entrance 2454 | -10/Mines | Entered Subcaves 2455 | -10/Subcaves | Approached by a straggling Scientist 2455 | -10/Subcaves | Identified exit to Recycling 2455 | -10/Subcaves | Identified exit to Materials 2471 | -10/Subcaves | Learned Materials garrison access intel 2511 | -10/Subcaves | Shifting Twisted Machinery released Sub. Shrapnel Launcher 2711 | -10/Subcaves | A swath of the cavern ceiling suddenly collapsed 2803 | -10/Subcaves | Crushed by falling debris 2803 | -10/Subcaves | Smashed by cave-in Last Messages --------------- R3-P7J(R) destroyed. Subatomizers dissect the Sub. Laser. Acquired 18 matter. Acquired 33 matter. Acquired 3 matter. 43-15U(c): "I think it's somewhere northwest of here" A swath of the cavern ceiling suddenly collapses. System corrupted: Matter fused (-5). ST-B52(u) tweaks Twisted Machinery. ST-B52(u) builds Twisted Machinery. Slug penetrates Twisted Machinery. EK-LX8(R) knocked back. IC-FAQ(R) knocked back. ST-B52(u) builds Twisted Machinery. The unstable cave ceiling collapses. Crushed by falling debris. Wheel destroyed. System corrupted by crushing effect (+1). Map ----- +----------------------------------------------------+ | ???????????????????????????????????????????????? | | ???????????????????????????????????????????????? | | ???????????????????????????????????????????????? | | ???????????????????????????????????????????????? | | ???????????????????????????????????????????????? | | ???????????????????????????????????????????????? | | ???????????????????????????????????????????????? | | ???????????????????????????????????????????????? | | ???????????????????????????????????????????????? | | ???????????????????????????????????????????????? | | ???????????????????????????????????????????????? | | ???????????????????????????????????????????????? | | ???????????????????????????????????????????????? | | ???????????????????????????##??????????????????? | | ????????????????????#??#?? ##?????????????????? | | ??????????????????????#"?? " "? ???????????????? | | ?????????????#?#?#??## ?? "??????????????????? | | ????????????????????# ?# ##?????????????????? | | ?????????????#??????# ## #?????????????????? | | ???????????????????## # #??????????????????? | | ??????????????????### ??#????????????????? | | ???????????????????# ##???????????????????? | | ???????????????????#%R ????????????????????? | | ????????????????????#R ??????????????????????? | | ?????#????????###???# ##???#??????????????????? | | ??????????????# ####% @#? #??????????????????? | | ????????#?????# # #???????????????????? | | ??????????????## #???????????????????? | | ???????????????#" #???????????????????? | | ??????????#?#??## # #????#??????????????? | | ??????????????###" #### #?#?????#???????????? | | ???????????????# " #### #???????#???????????? | | ???????????????# u"# # #???????????????????? | | ???????????????## "" #???????????????????? | | ???????????????# " #??????????????????? | | ???????????????### ""### #????#?????????????? | | ??????#?#????????## "###?####?#????????????????? | | ??????????????#####"" ##??????????????????????? | | ???????#?##???# ##"""" ###????????????????????? | | ????????????#?# """"#?#???????????????????? | | ????????????#?# #"#????????????????#????? | | ??????????????##" ""#??##??????????????????? | | ???????????????#######"##? #???#??????????????? | | ???????????#??#??????##"#? ???????????#???????? | | ??????????#??????#????#"####????????????#??????? | | ??????????#???????#???#"""##?????#?????????????? | | ????????????????????###""#"#??????????#????????? | | ????????????????????###"#"##???????????????????? | | ?????????????????? ??#"#"##??????????#?#?????#?? | | ?????????????????????#"""#??????###??????####### | +----------------------------------------------------+ Best States ------------- Heat Dissipation 25 Energy Generation 14 Energy Capacity 250 Matter Stores 300 Matter Capacity 300 Sight Range 16 Terrain Scan Range 16 Terrain Scan Density 10 Armor Coverage 150 Resistance: KI 35 Resistance: TH 35 Resistance: EX 35 Resistance: EM 35 Resistance: I 35 Resistance: S 35 Resistance: P 35 Evasion (%) 41 Targeting Accuracy 5 Recoil Reduction 2 Offensive Hacking 20 Item Schematics ----------------- None Robot Schematics ------------------ None Fabricated ------------ Nothing Repaired ---------- Nothing Alien Tech Used ----------------- None Achievements -------------- None Challenges ------------ None Game ------ Seed FlightMappingConstruct Manual? 0 Play Time 00:17:54 Cumulative 19.2 hours Start 2025.05.31 @ 12:13:30 End 2025.05.31 @ 12:29:13 Sessions 1 Manual Loads 0 Difficulty Explorer Special Mode None Game No. 5 Rogue 0 Adventurer 0 Explorer 5 Win Type - Total 2 Types 1/0/0/0/0/0/0/0/0/1 Lore% 30 Gallery% 29 Achievement% 57 Wizard Run 0 Options --------- Layout 1 ASCII 0 Keyboard 0 Movement Mouse Keybinds 0 Fullscreen 2 Font 24/Smallcaps Map View 50x35 Zoom Use 0% Tactical HUD 0 Map Filters NONE Filters NONE Steam 1 RUN: 39361b49-5bdd-4db2-95fc-7f7b5050bca2